bitfinex/quotes_BTCUSD_20210101
["timestamp","ask_amount","ask_price","bid_price","bid_amount"]
[1609514754247,1.727001,29347.0,29346.0,0.57783548]
[1609514754444,1.3622,29347.0,29346.0,0.57783548]
[1609514754744,2.32095339,29347.0,29346.0,0.57783548]
[1609514754996,1.3622,29347.0,29346.0,0.57783548]
[1609514755697,1.5622,29347.0,29346.0,0.57783548]
[1609514755896,1.3622,29347.0,29346.0,0.57783548]
[1609514756198,1.5622,29347.0,29346.0,0.57783548]
[1609514756397,1.3622,29347.0,29346.0,0.57783548]
[1609514757296,1.5622,29347.0,29346.0,0.57783548]
[1609514757897,1.3622,29347.0,29346.0,0.57783548]
[1609514758302,1.3622,29347.0,29346.0,0.89258548]
[1609514758720,1.3622,29347.0,29346.0,0.88758548]
[1609514763323,1.3642,29347.0,29346.0,0.88758548]
[1609514764373,1.3642,29347.0,29322.0,2.8104]
[1609514764582,1.3642,29347.0,29300.0,0.20678]
[1609514764889,1.3642,29347.0,29238.0,0.49517285]
[1609514764890,0.52,29344.0,29322.0,0.35828484]
[1609514765072,0.62658154,29341.0,29322.0,0.2554]
[1609514765285,0.5109,29335.0,29322.0,0.2554]
[1609514765471,0.53525916,29334.0,29316.0,0.0004]
[1609514765766,1.09433758,29331.0,29310.0,0.09252773]
[1609514765970,1.09433758,29331.0,29305.0,1.5]
[1609514765971,1.07459946,29329.0,29305.0,1.5]
[1609514766269,0.6,29326.0,29317.0,0.0006]
[1609514766469,1.66190248,29325.0,29317.0,0.0006]
[1609514766668,1.61423872,29324.0,29317.0,0.0006]
[1609514766865,0.53180302,29323.0,29317.0,0.0006]
[1609514767065,0.675,29322.0,29317.0,0.10443359]
[1609514767265,0.4555,29320.0,29317.0,0.10443359]
[1609514767467,0.29026188,29319.0,29317.0,0.10443359]
[1609514767665,0.2,29319.0,29317.0,0.10463359]
[1609514768368,1.2222,29319.0,29317.0,0.10463359]
[1609514768562,0.315,29318.0,29317.0,0.10463359]
[1609514768762,1.3372,29318.0,29317.0,0.10463359]
[1609514769762,1.3372,29318.0,29317.0,0.0008]
[1609514771485,1.3372,29318.0,29317.0,0.0002]
[1609514771693,1.3372,29318.0,29313.0,0.0002]
[1609514771891,0.235,29317.0,29313.0,0.0002]
[1609514772088,1.2572,29317.0,29313.0,0.0002]
[1609514772589,1.2572,29317.0,29313.0,0.10159152]
[1609514772991,1.2572,29317.0,29313.0,0.09659152]
[1609514773691,1.0222,29317.0,29313.0,0.09659152]
[1609514775625,1.0222,29317.0,29313.0,0.09679152]
[1609514777956,1.0222,29317.0,29313.0,0.08679152]
[1609514778357,1.0122,29317.0,29313.0,0.08679152]
[1609514779360,1.84042553,29316.0,29313.0,0.08679152]
[1609514780361,1.59042553,29316.0,29313.0,0.08679152]
[1609514780763,1.59042553,29316.0,29313.0,0.08179152]
[1609514781479,1.59042553,29316.0,29313.0,0.07179152]
[1609514784782,1.58542553,29316.0,29313.0,0.07179152]
[1609514785383,0.58542553,29316.0,29313.0,0.07179152]
[1609514788712,0.58542553,29316.0,29313.0,0.06179152]
[1609514789014,0.53362169,29316.0,29313.0,0.06179152]
[1609514791410,0.53362169,29316.0,29313.0,0.05679152]
[1609514794211,0.73362169,29316.0,29313.0,0.05679152]
[1609514794446,0.68207169,29316.0,29313.0,0.0002]
[1609514794609,0.22526188,29315.0,29312.0,0.5127]
[1609514794807,0.66862169,29315.0,29312.0,0.5127]
[1609514795206,0.53362169,29315.0,29312.0,0.5127]
[1609514795603,0.53362169,29315.0,29312.0,0.4977]
[1609514799819,0.53362169,29315.0,29312.0,0.4927]
[1609514800431,0.08,29314.0,29312.0,0.4927]
[1609514800626,0.61362169,29314.0,29312.0,0.4927]
[1609514804451,0.61362169,29314.0,29312.0,0.0463]
[1609514805153,0.61362169,29314.0,29312.0,0.0002]
[1609514805359,5.2,29311.0,29309.0,0.0006]
[1609514805580,4.33180302,29312.0,29305.0,0.0006]
[1609514805581,5.2,29307.0,29305.0,0.0006]
[1609514805778,5.2,29304.0,29303.0,0.0002]
[1609514805954,7.54978634,29304.0,29303.0,0.0002]
[1609514806155,7.2903512,29304.0,29303.0,0.0002]
[1609514806355,8.2903512,29304.0,29303.0,0.0002]
[1609514806563,9.29782046,29304.0,29303.0,0.0002]
[1609514806758,9.37782046,29304.0,29303.0,0.0002]
[1609514806993,8.37782046,29304.0,29303.0,0.0002]
[1609514808596,7.41906707,29304.0,29303.0,0.0004]
[1609514808789,8.37782046,29304.0,29303.0,0.0004]
[1609514809092,8.25426546,29304.0,29303.0,0.0004]
[1609514809799,4.2,29302.0,29300.0,0.0006]
[1609514809999,6.18678884,29300.0,29299.0,0.0006]
[1609514810205,6.18678884,29300.0,29296.0,0.0006]
[1609514810206,7.60533835,29299.0,29296.0,0.0006]
[1609514810400,1.23678884,29297.0,29290.0,0.001]
[1609514810603,5.78590612,29295.0,29290.0,0.001]
[1609514810803,0.95875339,29294.0,29293.0,0.0006]
[1609514811109,1.16080663,29291.0,29288.0,0.0006]
[1609514811310,0.33180302,29288.0,29284.0,0.0018]
[1609514811521,5.15,29285.0,29284.0,0.0018]
[1609514811814,7.89215422,29285.0,29283.0,0.0006]
[1609514812117,1.47664552,29283.0,29275.0,0.1476148]
[1609514812320,7.41651379,29282.0,29281.0,0.0014]
[1609514812513,9.79170548,29282.0,29281.0,0.0014]
[1609514812932,9.79170548,29282.0,29275.0,0.1476148]
[1609514812933,0.08,29271.0,29268.0,0.2591508]
[1609514813116,0.08,29271.0,29261.0,0.0016]
[1609514813117,5.2284,29267.0,29261.0,0.0016]
[1609514813324,5.18715339,29266.0,29263.0,0.13417273]
[1609514813526,0.364808,29264.0,29263.0,0.13417273]
[1609514813819,1.26709157,29264.0,29263.0,0.13437273]
[1609514814018,0.90228357,29264.0,29263.0,0.13437273]
[1609514814218,0.70228357,29264.0,29263.0,0.13437273]
[1609514814419,0.69728357,29264.0,29263.0,0.05437273]
[1609514814615,0.60702169,29264.0,29263.0,0.05437273]
[1609514815020,0.60702169,29264.0,29263.0,0.15557867]
[1609514815221,0.60702169,29264.0,29263.0,5.20437273]
[1609514815426,0.53362169,29264.0,29263.0,5.61614653]
[1609514815619,0.44850412,29264.0,29263.0,5.61614653]
[1609514816222,0.34744373,29264.0,29263.0,5.61114653]
[1609514816817,0.31844373,29264.0,29263.0,5.61114653]
[1609514817032,0.31844373,29264.0,29263.0,6.29354653]
[1609514817235,0.31844373,29264.0,29263.0,6.25354653]
[1609514817646,0.31844373,29264.0,29263.0,0.94177273]
[1609514817946,0.31844373,29264.0,29263.0,0.69177273]
[1609514817947,0.39184373,29264.0,29263.0,0.69177273]
[1609514818137,0.39184373,29264.0,29263.0,5.84177273]
[1609514818138,0.30998499,29264.0,29263.0,5.84177273]
[1609514818342,0.23658499,29264.0,29263.0,4.19177273]
[1609514818540,0.23658499,29264.0,29263.0,4.18677273]
[1609514818747,0.02298344,29278.0,29263.0,5.68677273]
[1609514818949,0.25794439,29288.0,29265.0,5.15]
[1609514818950,0.350058,29287.0,29265.0,5.15]
[1609514819159,0.00040006,29293.0,29279.0,5.15]
[1609514819351,1.0241,29293.0,29281.0,5.15]
[1609514819548,0.72304487,29293.0,29281.0,5.15]
[1609514819842,0.13629545,29293.0,29282.0,0.5379376]
[1609514820044,0.13629545,29293.0,29283.0,0.25]
[1609514820344,0.03377327,29293.0,29283.0,0.25]
[1609514820537,0.03377327,29293.0,29283.0,0.325]
[1609514820844,0.03377327,29293.0,29286.0,0.70184]
[1609514821231,0.03377327,29293.0,29286.0,0.70204]
[1609514821441,0.03377327,29293.0,29286.0,0.8052357]
[1609514821649,0.95875339,29304.0,29287.0,5.395]
[1609514821840,0.95875339,29304.0,29288.0,0.0802]
[1609514822056,0.68230001,29314.0,29289.0,0.00345614]
[1609514822247,1.0237,29306.0,29289.0,0.00345614]
[1609514822444,1.0237,29306.0,29289.0,0.66393547]
[1609514822645,1.0237,29306.0,29290.0,0.06979397]
[1609514822842,1.0237,29306.0,29291.0,0.00345614]
[1609514823244,1.0237,29306.0,29293.0,0.00345614]
[1609514823443,0.97102132,29306.0,29293.0,0.24980614]
[1609514823640,0.97102132,29306.0,29293.0,0.25000614]
[1609514824159,0.44778108,29304.0,29295.0,0.5114]
[1609514824361,0.53804296,29302.0,29294.0,0.0002]
[1609514824591,0.33180302,29299.0,29285.0,0.6802]
[1609514824752,0.44778108,29297.0,29285.0,0.6802]
[1609514824950,1.35875339,29296.0,29285.0,0.6802]
[1609514825151,0.44778108,29294.0,29285.0,0.6802]
[1609514825464,2.83477471,29293.0,29285.0,0.78282556]
[1609514825651,0.33180302,29291.0,29285.0,0.78282556]
[1609514825850,0.97102132,29291.0,29285.0,0.78282556]
[1609514826047,1.17102132,29291.0,29285.0,0.78282556]
[1609514826251,1.36602132,29291.0,29285.0,0.7602]
[1609514826482,1.17102132,29291.0,29285.0,0.7602]
[1609514826673,0.97102132,29291.0,29285.0,0.7602]
[1609514827277,0.97102132,29291.0,29285.0,0.86183188]
[1609514827471,0.97102132,29291.0,29286.0,0.215]
[1609514828078,0.97102132,29291.0,29285.0,0.6804]
[1609514828482,0.97102132,29291.0,29285.0,0.6802]
[1609514830269,0.96602132,29291.0,29285.0,0.6802]
[1609514831369,0.7,29290.0,29285.0,0.682]
[1609514831679,0.67173412,29289.0,29271.0,0.07436771]
[1609514831878,0.67173412,29288.0,29271.0,0.07436771]
[1609514832090,0.67173412,29287.0,29271.0,0.07436771]
[1609514832290,0.67173412,29287.0,29269.0,0.07436771]
[1609514832291,0.67173412,29286.0,29269.0,0.07436771]
[1609514832491,0.86673412,29285.0,29269.0,0.07436771]
[1609514832692,0.67155402,29284.0,29269.0,0.07436771]
[1609514832891,0.67173412,29283.0,29269.0,0.07436771]
[1609514833095,0.67173412,29282.0,29269.0,0.07436771]
[1609514833307,0.44673412,29281.0,29265.0,1.5]
[1609514833499,0.64673412,29281.0,29265.0,1.5]
[1609514833692,1.65945927,29280.0,29265.0,1.5]
[1609514833899,1.65945927,29280.0,29266.0,0.245]
[1609514833900,0.66753776,29279.0,29266.0,0.245]
[1609514834410,0.43116722,29290.0,29274.0,1.0]
[1609514834612,0.00587873,29299.0,29274.0,1.0]
[1609514834613,6.48e-06,29297.0,29281.0,1.0]
[1609514834820,0.07864464,29309.0,29282.0,0.00345]
[1609514835106,0.0002,29312.0,29285.0,1.16470392]
[1609514835394,0.0002,29312.0,29286.0,1.01090148]
[1609514835592,0.0002,29312.0,29288.0,0.56611886]
[1609514835800,0.0002,29312.0,29295.0,0.36611886]
[1609514835999,1.0237,29312.0,29297.0,0.07999278]
[1609514836202,1.0187,29312.0,29303.0,0.14609886]
[1609514836498,1.0187,29312.0,29304.0,0.03691]
[1609514836689,1.0187,29312.0,29305.0,0.03346]
[1609514837063,1.0187,29312.0,29305.0,0.17955886]
[1609514837264,0.94981683,29312.0,29307.0,0.14609886]
[1609514837464,0.91475327,29312.0,29308.0,0.20272]
[1609514837668,0.89091605,29312.0,29308.0,0.47718886]
[1609514837863,0.87353134,29312.0,29308.0,0.32609]
[1609514838160,0.87353134,29312.0,29308.0,0.98328886]
[1609514838659,0.87353134,29312.0,29308.0,0.98348886]
[1609514838864,0.87353134,29312.0,29308.0,0.65739886]
[1609514839660,0.87353134,29312.0,29308.0,0.5113]
[1609514839965,0.87353134,29312.0,29308.0,0.65739886]
[1609514840366,0.87353134,29312.0,29308.0,0.5113]
[1609514840574,0.87353134,29312.0,29303.0,0.00345]
[1609514840575,0.95875339,29308.0,29303.0,0.00345]
[1609514840783,0.95875339,29300.0,29293.0,1.7036]
[1609514840981,0.95875339,29295.0,29293.0,0.14609886]
[1609514841174,0.09026188,29294.0,29275.0,5.26689244]
[1609514841373,0.47428154,29293.0,29276.0,0.03346]
[1609514841591,2.30656627,29293.0,29276.0,0.03346]
[1609514841795,0.47428154,29292.0,29276.0,0.03346]
[1609514842011,1.06853134,29292.0,29278.0,0.5116]
[1609514842209,0.1185094,29306.0,29282.0,1.0]
[1609514842502,0.10970063,29305.0,29284.0,0.47183174]
[1609514842698,0.0002,29314.0,29285.0,0.47183174]
[1609514842897,0.0002,29314.0,29286.0,0.47183174]
[1609514843099,0.95875339,29313.0,29287.0,0.47183174]
[1609514843408,0.37743673,29312.0,29299.0,0.5111]
[1609514843599,2.35959012,29312.0,29299.0,0.5111]
[1609514843801,0.37684525,29310.0,29299.0,0.5111]
[1609514844101,0.37684525,29310.0,29300.0,0.29903278]
[1609514844102,1.0234,29310.0,29300.0,0.29903278]
[1609514844496,1.0234,29310.0,29301.0,0.03346]
[1609514844992,0.205,29309.0,29301.0,0.03346]
[1609514845238,0.205,29309.0,29301.0,0.03366]
[1609514845439,0.47183174,29309.0,29302.0,0.07999278]
[1609514845640,1.43058513,29309.0,29302.0,0.0002]
[1609514845846,0.47183174,29307.0,29302.0,0.0002]
[1609514846044,1.0234,29308.0,29302.0,0.0002]
[1609514846244,1.0234,29308.0,29300.0,0.6815]
[1609514846545,1.0234,29308.0,29301.0,0.11345278]
[1609514847340,1.0234,29308.0,29302.0,0.03346]
[1609514847942,1.0234,29308.0,29302.0,0.0002]
[1609514848541,1.0234,29308.0,29302.0,0.03346]
[1609514849202,1.0234,29308.0,29305.0,0.5111]
[1609514849404,1.0234,29308.0,29305.0,0.67009]
[1609514849699,1.0234,29308.0,29306.0,0.11345278]
[1609514850199,1.0234,29308.0,29306.0,0.08019278]
[1609514850598,1.0234,29308.0,29306.0,0.0002]
[1609514850797,1.0234,29308.0,29305.0,0.82804235]
[1609514851200,1.0234,29308.0,29305.0,0.77337235]
[1609514851400,1.0234,29308.0,29305.0,0.77357235]
[1609514851801,1.0234,29308.0,29306.0,0.11345278]
[1609514852289,0.67949236,29312.0,29307.0,0.03346]
[1609514852488,0.67949236,29312.0,29309.0,0.6813]
[1609514852885,0.67949236,29312.0,29310.0,0.07999278]
[1609514853582,0.67949236,29312.0,29310.0,0.08019278]
[1609514854687,0.67949236,29312.0,29310.0,0.0002]
[1609514854887,0.67949236,29312.0,29309.0,0.76129278]
[1609514855487,0.67949236,29312.0,29309.0,0.99149278]
[1609514856289,0.67949236,29312.0,29309.0,1.02495278]
[1609514856509,0.67949236,29312.0,29310.0,0.0002]
[1609514856905,0.67949236,29312.0,29310.0,1.0002]
[1609514857109,2.36e-06,29312.0,29311.0,0.245]
[1609514857309,2.36e-06,29312.0,29311.0,0.44738]
[1609514857503,2.36e-06,29312.0,29311.0,0.44758]
[1609514857911,2.36e-06,29312.0,29311.0,1.52757278]
[1609514858215,0.0002,29314.0,29311.0,1.52757278]
[1609514858216,0.0004,29315.0,29311.0,1.62978449]
[1609514858614,0.0004,29315.0,29312.0,0.27866]
[1609514858833,0.0006,29326.0,29314.0,5.46689244]
[1609514859028,0.0004,29329.0,29314.0,5.46689244]
[1609514859029,0.07197995,29336.0,29316.0,2.0]
[1609514859215,0.13081439,29336.0,29317.0,0.53346244]
[1609514859411,0.05257296,29336.0,29318.0,0.03346]
[1609514859614,0.05321252,29336.0,29317.0,0.55480306]
[1609514859909,0.05096325,29336.0,29317.0,0.55480306]
[1609514860118,0.0006,29336.0,29319.0,1.0]
[1609514860614,0.0006,29336.0,29326.0,0.5107]
[1609514860816,1.2422,29333.0,29326.0,0.82843886]
[1609514861215,0.95875339,29332.0,29326.0,0.68234]
[1609514861423,1.03875339,29332.0,29326.0,0.68234]
[1609514861625,0.95875339,29331.0,29326.0,0.68234]
[1609514861810,0.95875339,29331.0,29326.0,0.5107]
[1609514862128,1.2477,29330.0,29325.0,0.681]
[1609514862327,1.0227,29330.0,29325.0,0.681]
[1609514862637,1.0227,29330.0,29326.0,1.0]
[1609514863026,1.0227,29330.0,29325.0,0.681]
[1609514864032,1.0227,29330.0,29326.0,1.0]
[1609514864631,1.0227,29330.0,29326.0,1.2019]
[1609514866932,1.0227,29330.0,29326.0,1.8829]
[1609514868332,1.16492536,29330.0,29326.0,1.8829]
[1609514870457,1.16492536,29330.0,29326.0,0.8829]
[1609514870660,2.12367875,29330.0,29326.0,0.681]
[1609514870976,1.7243428,29329.0,29326.0,0.601]
[1609514871160,1.78828941,29329.0,29326.0,0.601]
[1609514871370,2.3770428,29329.0,29327.0,1.0]
[1609514871569,1.61828941,29329.0,29327.0,1.0]
[1609514872763,2.5770428,29329.0,29327.0,1.0]
[1609514873069,2.5770428,29329.0,29317.0,0.0002]
[1609514873070,0.2555,29324.0,29317.0,0.0002]
[1609514873274,1.73991157,29323.0,29316.0,0.0002]
[1609514873486,0.65742818,29322.0,29316.0,0.0002]
[1609514873673,0.03346812,29321.0,29316.0,0.0002]
[1609514873875,0.29026188,29320.0,29307.0,1.0]
[1609514874064,0.45742818,29319.0,29309.0,1.0]
[1609514874270,0.65742818,29319.0,29309.0,1.0]
[1609514874465,1.31296188,29320.0,29309.0,1.0]
[1609514874867,1.50296188,29320.0,29309.0,1.0]
[1609514875075,2.01406188,29320.0,29309.0,1.0]
[1609514875289,2.07956188,29320.0,29309.0,1.0]
[1609514875490,1.7338,29320.0,29309.0,1.0]
[1609514875687,1.2227,29320.0,29309.0,1.0]
[1609514876491,1.2227,29320.0,29310.0,0.511]
[1609514876684,1.31296188,29320.0,29310.0,0.511]
[1609514877690,0.7111,29318.0,29308.0,0.0002]
[1609514877995,0.7111,29318.0,29307.0,1.3815]
[1609514877996,0.54,29317.0,29307.0,1.3815]
[1609514878290,1.2227,29317.0,29307.0,1.3815]
[1609514878888,1.2227,29317.0,29307.0,1.4615]
[1609514879089,1.0227,29317.0,29307.0,1.4615]
[1609514879684,1.2227,29317.0,29307.0,1.4615]
[1609514880002,1.0227,29317.0,29311.0,0.511]
[1609514880785,1.0227,29317.0,29311.0,0.591]
[1609514882006,1.0227,29317.0,29311.0,0.69298358]
[1609514882273,1.16492536,29317.0,29311.0,0.90278358]
[1609514882576,1.16492536,29317.0,29312.0,0.195]
[1609514882971,1.16492536,29317.0,29313.0,0.08]
[1609514883472,5.36e-06,29318.0,29313.0,0.08]
[1609514883678,0.39558941,29329.0,29315.0,1.8512]
[1609514883973,0.39558941,29329.0,29316.0,0.74146487]
[1609514884276,0.27313418,29329.0,29317.0,0.245]
[1609514884569,0.27313418,29329.0,29317.0,0.22158]
[1609514884997,0.27313418,29329.0,29317.0,0.22178]
[1609514885201,0.27313418,29329.0,29318.0,1.08]
[1609514885702,0.27313418,29329.0,29319.0,0.0002]
[1609514885900,0.27313418,29329.0,29320.0,0.2]
[1609514886104,0.27313418,29329.0,29322.0,0.61429079]
[1609514886301,0.27313418,29329.0,29323.0,0.2965]
[1609514887403,0.27313418,29329.0,29324.0,1.0]
[1609514887707,0.27313418,29329.0,29326.0,0.08]
[1609514888808,0.27313418,29329.0,29327.0,0.5107]
[1609514889007,0.26813418,29329.0,29327.0,0.5107]
[1609514889304,0.26813418,29329.0,29328.0,4.38]
[1609514889508,0.26813418,29329.0,29328.0,4.545]
[1609514889911,0.26813418,29329.0,29328.0,4.625]
[1609514891128,0.26313418,29329.0,29328.0,1.0059]
[1609514891325,0.26313418,29329.0,29328.0,1.6609]
[1609514891629,0.26313418,29329.0,29328.0,0.7609]
[1609514891827,0.26313418,29329.0,29328.0,0.6809]
[1609514892026,1.28603418,29329.0,29328.0,0.6809]
[1609514892530,1.22016049,29329.0,29328.0,3.5809]
[1609514892828,1.22016049,29329.0,29328.0,0.6809]
[1609514893230,2.17891388,29329.0,29328.0,0.6809]
[1609514893629,1.22016049,29329.0,29328.0,0.6809]
[1609514895434,1.22016049,29329.0,29328.0,0.7609]
[1609514895736,1.22016049,29329.0,29328.0,0.92547]
[1609514896356,1.22016049,29329.0,29328.0,2.42547]
[1609514896757,1.22016049,29329.0,29328.0,0.92547]
[1609514898202,1.22016049,29329.0,29328.0,3.37547]
[1609514898401,1.22016049,29329.0,29328.0,0.92547]
[1609514899302,1.22016049,29329.0,29328.0,2.82547]
[1609514899504,1.22016049,29329.0,29328.0,0.92547]
[1609514899945,1.22016049,29329.0,29328.0,0.7609]
[1609514900142,1.40016049,29329.0,29328.0,0.7609]
[1609514900646,1.40016049,29329.0,29328.0,0.95881]
[1609514900839,1.22016049,29329.0,29328.0,0.95881]
[1609514901241,1.22016049,29329.0,29328.0,2.30881]
[1609514901844,1.22016049,29329.0,29328.0,0.95881]
[1609514902249,1.22016049,29329.0,29328.0,2.65881]
[1609514903543,1.22016049,29329.0,29328.0,0.95881]
[1609514904143,1.22016049,29329.0,29328.0,2.15881]
[1609514904345,1.22016049,29329.0,29328.0,0.95881]
[1609514905146,1.22016049,29329.0,29328.0,3.85881]
[1609514905368,0.63335,29338.0,29329.0,5.26]
[1609514905369,0.0004,29337.0,29329.0,5.26]
[1609514905575,0.63275,29338.0,29330.0,0.11]
[1609514905885,0.95955339,29343.0,29332.0,5.15]
[1609514906079,0.95875339,29342.0,29332.0,5.15]
[1609514906275,0.95875339,29341.0,29333.0,0.245]
[1609514906475,0.0008,29343.0,29333.0,0.245]
[1609514906681,0.95955339,29343.0,29337.0,0.8509]
[1609514906979,0.0008,29343.0,29337.0,1.18016886]
[1609514907174,0.0008,29343.0,29337.0,1.23919886]
[1609514907771,0.95875339,29342.0,29337.0,1.23919886]
[1609514908080,0.95875339,29342.0,29340.0,0.5106]
[1609514908273,0.95955339,29343.0,29340.0,0.5106]
[1609514908574,0.0008,29343.0,29340.0,0.5106]
[1609514908777,0.14,29342.0,29341.0,5.23]
[1609514909075,0.0008,29343.0,29341.0,5.37609886]
[1609514910174,0.0008,29343.0,29341.0,0.08]
[1609514910481,0.95875339,29342.0,29341.0,0.08]
[1609514910673,0.95875339,29342.0,29340.0,0.5906]
[1609514910874,0.0008,29343.0,29340.0,0.5906]
[1609514913538,0.95955339,29343.0,29340.0,0.5906]
[1609514913740,0.0008,29343.0,29340.0,0.5906]
[1609514913948,0.0004,29344.0,29342.0,5.15]
[1609514914142,0.0004,29344.0,29342.0,0.14609886]
[1609514914349,1.04901527,29343.0,29341.0,0.19]
[1609514914549,0.95875339,29342.0,29340.0,0.62745]
[1609514914774,0.31,29341.0,29340.0,0.62745]
[1609514915469,0.31,29341.0,29340.0,0.5106]
[1609514915671,0.95875339,29341.0,29340.0,0.5106]
[1609514916774,0.85875339,29343.0,29340.0,0.5106]
[1609514918273,1.0228,29344.0,29340.0,0.5106]
[1609514918576,1.0228,29344.0,29341.0,0.08]
[1609514919581,0.85875339,29343.0,29341.0,0.08]
[1609514919777,0.72758731,29341.0,29339.0,0.6807]
[1609514919982,0.72758731,29341.0,29326.0,0.0025]
[1609514919983,0.74427048,29339.0,29326.0,0.0025]
[1609514920283,0.6540086,29337.0,29328.0,0.10226028]
[1609514920512,0.79526188,29336.0,29328.0,0.10226028]
[1609514920703,0.705,29336.0,29328.0,0.10226028]
[1609514920910,1.2224,29337.0,29332.0,0.681]
[1609514921101,1.0224,29337.0,29332.0,0.681]
[1609514921298,1.0224,29337.0,29333.0,0.82204661]
[1609514921601,1.0224,29337.0,29333.0,0.6808]
[1609514922104,0.09026188,29336.0,29333.0,0.6808]
[1609514922303,0.195,29335.0,29333.0,0.6808]
[1609514923605,1.0224,29337.0,29333.0,0.6808]
[1609514925805,0.85875339,29336.0,29333.0,0.6808]
[1609514926050,1.67756999,29334.0,29326.0,0.0025]
[1609514926241,0.85875339,29333.0,29326.0,0.0025]
[1609514926442,0.364808,29331.0,29326.0,0.0025]
[1609514926648,0.45506988,29329.0,29326.0,0.0025]
[1609514926841,1.05228472,29327.0,29326.0,0.0025]
[1609514927145,0.2,29327.0,29326.0,0.0025]
[1609514927398,1.0224,29327.0,29326.0,0.0025]
[1609514927690,1.4924,29327.0,29315.0,0.9927]
[1609514927889,1.2924,29327.0,29316.0,0.14124661]
[1609514928092,1.2924,29327.0,29321.0,0.6811]
[1609514928291,1.0224,29327.0,29321.0,0.6811]
[1609514928488,1.0224,29327.0,29321.0,0.92354676]
[1609514928682,1.0224,29327.0,29321.0,0.82234661]
[1609514928992,1.0224,29327.0,29321.0,0.6811]
[1609514929684,1.0224,29327.0,29321.0,0.78200343]
[1609514930457,1.0224,29327.0,29321.0,0.6811]
[1609514931858,1.0174,29327.0,29321.0,0.6811]
[1609514933674,1.0174,29327.0,29321.0,0.6711]
[1609514934375,1.0174,29327.0,29321.0,0.7729345]
[1609514934579,0.18,29326.0,29321.0,0.6711]
[1609514935378,1.0174,29327.0,29321.0,0.6711]
[1609514938882,0.09026188,29326.0,29321.0,0.6711]
[1609514940529,1.09618906,29327.0,29321.0,0.6711]
[1609514941129,1.0174,29327.0,29321.0,0.6711]
[1609514941731,1.0124,29327.0,29321.0,0.6711]
[1609514942529,0.15,29326.0,29321.0,0.6711]
[1609514943227,1.0124,29327.0,29321.0,0.6711]
[1609514943631,1.0124,29327.0,29321.0,0.81234661]
[1609514943837,1.0124,29327.0,29322.0,0.14124661]
[1609514944237,1.0124,29327.0,29323.0,0.16]
[1609514944440,1.0124,29327.0,29324.0,0.31835661]
[1609514944869,1.0124,29327.0,29325.0,0.14124661]
[1609514945077,1.0124,29327.0,29326.0,5.6607]
[1609514945274,1.0124,29327.0,29326.0,6.04694661]
[1609514946065,1.00128548,29327.0,29326.0,6.04694661]
[1609514946269,0.98364621,29327.0,29326.0,6.04694661]
[1609514946477,0.98364621,29327.0,29326.0,0.7557]
[1609514946681,1.93266148,29327.0,29326.0,0.7557]
[1609514946889,1.93266148,29327.0,29314.0,0.33069193]
[1609514947083,0.48357396,29325.0,29317.0,1.0]
[1609514947274,0.45010584,29324.0,29317.0,1.0]
[1609514947482,0.54036772,29324.0,29315.0,0.0002]
[1609514947786,0.09026188,29324.0,29314.0,0.0002]
[1609514947975,0.09026188,29324.0,29313.0,0.0025]
[1609514948178,0.03346812,29323.0,29313.0,0.0027]
[1609514948376,0.09026188,29324.0,29313.0,0.0027]
[1609514948377,0.94901527,29324.0,29313.0,0.0027]
[1609514948574,0.30346812,29323.0,29313.0,0.0027]
[1609514948882,0.27,29323.0,29317.0,0.511]
[1609514949076,1.12875339,29323.0,29317.0,0.511]
[1609514949273,0.18,29322.0,29317.0,0.511]
[1609514949474,0.21346812,29322.0,29317.0,0.511]
[1609514949874,0.18,29322.0,29317.0,0.511]
[1609514950072,0.03346812,29323.0,29317.0,0.511]
[1609514950373,0.09026188,29324.0,29317.0,0.511]
[1609514950595,0.85875339,29323.0,29317.0,0.511]
[1609514950991,0.17,29322.0,29317.0,0.511]
[1609514952496,0.74036772,29324.0,29317.0,0.511]
[1609514952796,0.54036772,29324.0,29317.0,0.511]
[1609514952997,0.09026188,29324.0,29317.0,0.511]
[1609514954202,1.21711433,29327.0,29317.0,0.511]
[1609514954497,0.98364621,29327.0,29317.0,0.65224661]
[1609514954698,0.33180302,29326.0,29317.0,0.511]
[1609514954899,0.58680302,29326.0,29317.0,0.65224661]
[1609514955101,0.58680302,29326.0,29314.0,0.0002]
[1609514955404,0.58680302,29326.0,29315.0,0.14124661]
[1609514955599,0.465,29325.0,29315.0,0.14124661]
[1609514955805,0.265,29325.0,29321.0,0.5109]
[1609514956327,0.09026188,29324.0,29321.0,0.5109]
[1609514956531,0.37619,29323.0,29318.0,0.6812]
[1609514956730,0.235,29322.0,29318.0,0.6812]
[1609514956929,0.09026188,29321.0,29318.0,0.6812]
[1609514957763,0.235,29322.0,29318.0,0.6812]
[1609514957961,0.22,29321.0,29318.0,0.6812]
[1609514958166,0.19619,29323.0,29318.0,0.6812]
[1609514958467,0.45010584,29326.0,29318.0,0.6812]
[1609514958662,0.45010584,29326.0,29318.0,0.82244661]
[1609514958861,0.98364621,29327.0,29318.0,0.82244661]
[1609514959163,0.225,29325.0,29318.0,0.6812]
[1609514959466,0.09026188,29324.0,29318.0,0.6812]
[1609514959663,0.94901527,29324.0,29318.0,0.6812]
[1609514959863,0.09026188,29324.0,29318.0,0.6812]
[1609514960061,0.18,29323.0,29318.0,0.6812]
[1609514960663,0.17163485,29323.0,29318.0,0.6812]
[1609514961064,0.15,29322.0,29318.0,0.6812]
[1609514962584,0.09026188,29321.0,29318.0,0.6812]
[1609514962983,0.21812,29322.0,29318.0,0.6812]
[1609514963181,0.06812,29322.0,29318.0,0.6812]
[1609514963383,0.09026188,29321.0,29318.0,0.6812]
[1609514965383,0.94901527,29321.0,29318.0,0.6812]
[1609514965588,0.18,29320.0,29316.0,0.511]
[1609514965887,0.178,29320.0,29316.0,0.511]
[1609514966591,0.85875339,29320.0,29316.0,0.511]
[1609514967196,0.94901527,29321.0,29313.0,0.0027]
[1609514967612,0.12373,29321.0,29313.0,0.0027]